bitfinex-derivatives/quotes_SOLF0:USTF0_20250522
["timestamp","ask_amount","ask_price","bid_price","bid_amount"]
[1747932469972,123.62,179.08,179.05,0.03836164]
[1747932470172,125.5925,179.08,179.05,0.03836164]
[1747932470668,127.5078,179.08,179.05,0.03836164]
[1747932470973,5.583,179.06,179.05,0.03836164]
[1747932480379,127.5078,179.08,178.96,123.28]
[1747932480679,9.87054086,179.06,178.92,605.6]
[1747932480976,127.5078,179.08,178.92,605.6]
[1747932481175,137.37834086,179.08,178.92,605.6]
[1747932481478,5.5843,179.02,178.99,0.0386461]
[1747932482076,0.03667494,179.03,178.99,0.0386461]
[1747932482584,0.03667494,179.03,179.02,5.5842]
[1747932483280,5.19283875,179.07,179.06,5.583]
[1747932484874,0.03529762,179.08,179.07,5.5827]
[1747932486780,0.03529762,179.08,179.06,5.5829]
[1747932486981,0.03529762,179.08,179.05,0.04010591]
[1747932487189,0.03529762,179.08,179.07,5.5827]
[1747932488184,0.03529762,179.08,179.05,0.04010591]
[1747932488386,0.03529762,179.08,178.99,123.28]
[1747932488785,5.5836,179.05,179.01,5.5845]
[1747932488987,1.9562,179.07,179.01,5.5845]
[1747932489296,5.5837,179.04,179.01,5.5845]
[1747932489590,0.03630646,179.04,179.02,5.5842]
[1747932489786,0.03630646,179.04,179.01,0.03716317]
[1747932489987,0.03630646,179.04,179.03,5.5839]
[1747932490190,6.46e-06,179.04,179.03,5.5839]
[1747932497997,6.46e-06,179.04,179.03,11.1639]
[1747932498496,6.46e-06,179.04,179.03,5.5839]
[1747932498697,6.46e-06,179.04,179.03,234.9639]
[1747932502100,6.46e-06,179.04,179.03,5.5839]
[1747932505598,6.46e-06,179.04,179.02,5.5842]
[1747932505807,6.46e-06,179.04,179.01,0.03716317]
[1747932506400,6.46e-06,179.04,179.02,5.584]
[1747932506602,6.46e-06,179.04,179.01,0.03716317]
[1747932507005,6.46e-06,179.04,179.02,5.584]
[1747932507205,6.46e-06,179.04,179.01,0.03716317]
[1747932507610,6.46e-06,179.04,179.02,5.5839]
[1747932507810,6.46e-06,179.04,179.01,0.03716317]
[1747932508203,6.46e-06,179.04,179.02,5.5842]
[1747932508402,6.46e-06,179.04,179.01,0.03716317]
[1747932508803,6.46e-06,179.04,179.03,5.5839]
[1747932509107,6.46e-06,179.04,179.03,234.6839]
[1747932512515,2.0513,179.13,179.11,5.5813]
[1747932512718,2.0513,179.13,179.03,229.1]
[1747932513618,0.04255322,179.1,179.06,0.03832717]
[1747932514417,0.04255322,179.1,179.09,5.582]
[1747932515516,5.322e-05,179.1,179.09,5.582]
[1747932517321,5.322e-05,179.1,179.06,0.03832717]
[1747932518218,5.5824,179.08,179.06,0.03832717]
[1747932518722,5.322e-05,179.1,179.06,0.03832717]
[1747932519022,5.5826,179.08,179.06,0.03832717]
[1747932519719,5.5821,179.09,179.06,0.03832717]
[1747932520020,5.322e-05,179.1,179.06,0.03832717]
[1747932520228,5.5827,179.07,179.06,0.03832717]
[1747932520520,5.322e-05,179.1,179.06,0.03832717]
[1747932521409,5.322e-05,179.1,179.09,5.5821]
[1747932530231,5.322e-05,179.1,179.06,122.99832717]
[1747932530732,5.58175322,179.1,179.07,5.5826]
[1747932532234,5.322e-05,179.1,179.08,5.5822]
[1747932533833,5.322e-05,179.1,179.09,5.582]
[1747932537342,5.322e-05,179.1,179.08,5.5822]
[1747932538838,5.322e-05,179.1,179.06,122.99832717]
[1747932539041,5.5824,179.08,179.06,0.03832717]
[1747932539236,5.322e-05,179.1,179.06,0.03832717]
[1747932539642,5.5826,179.08,179.06,0.03832717]
[1747932540039,5.322e-05,179.1,179.06,0.03832717]
[1747932540239,5.5827,179.07,179.06,0.03832717]
[1747932540442,5.322e-05,179.1,179.03,4.29040618]
[1747932540944,5.5827,179.07,179.03,4.29040618]
[1747932541346,5.5827,179.07,179.03,4.32759965]
[1747932542046,5.5827,179.07,179.03,0.03719347]
[1747932542239,5.322e-05,179.1,179.03,0.03719347]
[1747932543647,5.5832,179.06,179.03,0.03719347]
[1747932543845,5.62612219,179.06,179.03,0.03719347]
[1747932544546,0.04292219,179.06,179.03,0.03719347]
[1747932546952,5.62622219,179.06,179.03,0.03719347]
[1747932547150,0.04292219,179.06,179.03,0.03719347]
[1747932547551,5.5835,179.05,179.03,0.03719347]
[1747932548553,5.5836,179.04,179.03,0.03719347]
[1747932548853,3.9657,179.05,179.0,4.29040618]
[1747932549053,5.5838,179.04,179.0,4.29040618]
[1747932549252,5.5838,179.04,178.98,605.14]
[1747932549253,3.9657,179.05,178.98,605.14]
[1747932549549,5.5842,179.03,178.98,605.14]
[1747932549746,0.04122246,179.02,178.99,0.04074129]
[1747932553257,5.62552246,179.02,178.99,0.04074129]
[1747932555554,0.04122246,179.02,178.99,0.04074129]
[1747932556559,5.5848,179.01,178.99,0.04074129]
[1747932557055,0.04122246,179.02,178.99,0.04074129]
[1747932557755,0.04122246,179.02,178.94,122.76]
[1747932557961,5.5857,178.98,178.94,128.3465]
[1747932558160,124.7414,179.04,178.94,122.76]
[1747932558347,5.5864,178.95,178.94,122.76]
[1747932558559,124.7414,179.04,178.94,122.76]
[1747932558766,0.03693189,179.01,178.97,0.03722803]
[1747932558957,0.03693189,179.01,178.93,4.29040618]
[1747932559165,0.03693189,179.01,178.9,122.76]
[1747932559357,9.96769125,179.02,178.9,122.76]
[1747932559757,124.7414,179.04,178.9,122.76]
[1747932559965,0.03537686,178.99,178.95,0.03189129]
[1747932560671,5.5861,178.96,178.95,0.03189129]
[1747932568674,5.5859,178.97,178.95,0.03189129]
[1747932570377,5.5861,178.96,178.95,0.03189129]
[1747932578882,5.5859,178.97,178.95,0.03189129]
[1747932579084,1.9634,178.98,178.95,0.03189129]
[1747932579983,0.03537686,178.99,178.95,0.03189129]
[1747932580183,0.03537686,178.99,178.97,5.5858]
[1747932580385,0.03537686,178.99,178.95,122.63189129]
[1747932581486,0.03537686,178.99,178.98,5.5855]
[1747932586294,0.03537686,178.99,178.97,5.5857]
[1747932588491,0.03537686,178.99,178.96,5.586]
[1747932588784,0.03537686,178.99,178.95,122.63189129]
[1747932589291,5.5857,178.98,178.95,0.03189129]
[1747932591296,5.62057686,178.99,178.95,0.03189129]
[1747932591493,0.03537686,178.99,178.95,0.03189129]
[1747932592793,0.03537686,178.99,178.98,5.5855]
[1747932593994,0.03537686,178.99,178.97,5.5857]
[1747932594190,0.03537686,178.99,178.95,0.03189129]
[1747932594391,9.96769125,179.07,178.95,0.03189129]
[1747932594392,9.96769125,179.11,178.95,0.03189129]
[1747932594590,9.96769125,179.11,178.94,0.1912]
[1747932594794,124.4511,179.12,178.94,0.1912]
[1747932594993,5.583,179.07,178.94,0.1912]
[1747932595390,124.4511,179.12,179.04,5.5836]
[1747932595596,5.5829,179.07,179.06,0.04005425]
[1747932598598,5.5837,179.04,179.01,122.58]
[1747932598999,124.4511,179.12,179.01,122.58]
[1747932599592,124.4511,179.12,179.05,0.02721391]
[1747932599800,0.03926927,179.08,179.05,0.02721391]
[1747932600205,5.583,179.06,179.05,0.02721391]
[1747932600998,0.03926927,179.08,179.01,122.58]
[1747932601396,5.5841,179.03,178.99,5.5851]
[1747932601701,124.3901,179.07,178.99,5.5851]
[1747932601907,5.5845,179.02,178.98,5.5854]
[1747932602498,5.5846,179.01,178.98,5.5854]
[1747932602705,5.62579702,179.01,178.98,5.5854]
[1747932603104,0.04119702,179.01,178.99,5.5851]
[1747932603301,0.04119702,179.01,178.97,122.34]
[1747932603704,0.04119702,179.01,179.0,5.5849]
[1747932610809,1.9654,179.09,179.05,5.5832]
[1747932611308,1.9664,179.1,179.02,122.32]
[1747932611608,5.5821,179.09,179.02,122.32]
[1747932611808,0.04012691,179.07,179.04,0.03907743]
[1747932612007,0.04012691,179.07,179.05,5.5833]
[1747932612507,0.04012691,179.07,179.04,0.03907743]
[1747932612704,5.5847,179.01,178.99,4.29040618]
[1747932612902,1.9448,179.09,178.99,4.29040618]
[1747932613104,9.96769125,179.06,178.99,4.29040618]
[1747932613299,5.5849,179.0,178.99,4.29040618]
[1747932615208,5.5849,179.0,178.97,5.5858]
[1747932615510,5.5849,179.0,178.96,127.886]
[1747932616511,0.03881341,179.01,178.96,122.3]
[1747932617010,0.03881341,179.01,178.99,5.585]
[1747932617213,0.03881341,179.01,178.96,122.3]
[1747932617610,0.03881341,179.01,178.98,5.5853]
[1747932618209,5.62361341,179.01,178.98,5.5853]
[1747932618406,0.03881341,179.01,178.96,122.3]
[1747932619910,5.5849,179.0,178.97,5.5857]
[1747932620212,5.5849,179.0,178.96,122.3]
[1747932620513,5.5849,179.0,178.97,5.5858]
[1747932621014,5.62351341,179.01,178.97,5.5858]
[1747932621510,0.03881341,179.01,178.96,122.3]
[1747932621726,5.5852,178.99,178.96,122.3]
[1747932621907,0.03881341,179.01,178.96,127.8861]
[1747932622311,5.5851,179.0,178.96,127.8861]
[1747932623512,5.62351341,179.01,178.97,5.5858]
[1747932623713,0.03881341,179.01,178.97,5.5858]
[1747932623913,0.03881341,179.01,178.96,127.886]
[1747932624112,5.5851,179.0,178.96,127.886]
[1747932626808,5.5851,179.0,178.96,122.3]
[1747932627107,5.62351341,179.01,178.96,122.3]
[1747932627815,5.5851,179.0,178.96,122.3]
[1747932629317,5.5852,178.99,178.96,122.3]
[1747932629919,5.5852,178.99,178.96,127.8859]
[1747932630220,0.03881341,179.01,178.93,4.29040618]
[1747932630421,1.906,179.0,178.94,5.5867]
[1747932630614,3.8159,179.0,178.94,5.5867]
[1747932631622,5.5858,178.98,178.94,5.5867]
[1747932632320,3.8159,179.0,178.94,5.5867]
[1747932633720,5.5858,178.98,178.94,5.5867]
[1747932633919,3.8159,179.0,178.94,5.5867]
[1747932634114,3.8159,179.0,178.93,122.08]
[1747932634323,1.9048,178.99,178.93,122.08]
[1747932634822,5.5867,178.94,178.93,122.08]
[1747932635019,0.04102577,178.95,178.91,4.29040618]
[1747932635229,2.0128,178.93,178.87,5.72071813]
[1747932635916,5.5886,178.88,178.87,5.72071813]
[1747932636921,5.5894,178.86,178.8,228.26]
[1747932637112,0.03766365,178.85,178.8,122.1]
[1747932638633,0.03766365,178.85,178.84,5.5899]
[1747932639333,2.0128,178.93,178.87,5.5888]
[1747932639928,5.5876,178.92,178.87,5.5888]
[1747932640223,122.12,178.96,178.85,122.12]
[1747932640433,0.0381156,178.92,178.89,0.03550165]
[1747932640632,0.0381156,178.92,178.89,5.62360165]
[1747932640833,0.0381156,178.92,178.89,0.03550165]
[1747932641436,0.0381156,178.92,178.89,5.62370165]
[1747932642934,5.6255156,178.92,178.89,0.03550165]
[1747932643129,0.0381156,178.92,178.89,0.03550165]
[1747932644332,5.588,178.9,178.89,0.03550165]
[1747932644536,122.12,178.91,178.81,122.12]
[1747932644833,126.0223,178.91,178.81,122.12]
[1747932645536,0.04210824,178.88,178.81,122.12]
[1747932647838,5.63090824,178.88,178.84,5.5896]
[1747932648439,5.63090824,178.88,178.85,5.5895]
[1747932648938,5.63090824,178.88,178.84,5.5896]
[1747932649238,0.04210824,178.88,178.81,122.12]
[1747932649438,0.04210824,178.88,178.82,5.5903]
[1747932649637,0.04210824,178.88,178.81,122.12]
[1747932650541,0.04210824,178.88,178.83,5.5902]
[1747932650741,0.04210824,178.88,178.81,122.12]
[1747932651645,5.63080824,178.88,178.84,5.5899]
[1747932651939,0.04210824,178.88,178.81,122.12]
[1747932653649,5.63080824,178.88,178.81,122.12]
[1747932654042,5.63080824,178.88,178.78,0.232]
[1747932654247,0.04210824,178.88,178.8,122.16]
[1747932655553,5.589,178.87,178.84,5.5897]
[1747932655757,0.04210824,178.88,178.8,122.16]
[1747932656157,0.04210824,178.88,178.87,5.5889]
[1747932657455,1.9165,178.97,178.91,5.5876]
[1747932657756,5.5867,178.95,178.86,122.16]
[1747932658062,1.9165,178.97,178.91,5.5874]
[1747932658559,5.5865,178.95,178.92,0.03770785]
[1747932658752,0.03790571,178.96,178.92,0.03770785]
[1747932659059,5.5868,178.94,178.92,0.03770785]
[1747932660355,5.5871,178.93,178.92,0.03770785]
[1747932660657,0.03790571,178.96,178.86,122.16]
[1747932660962,5.5896,178.85,178.82,121.86]
[1747932661563,5.5899,178.84,178.82,121.86]
[1747932661762,5.5899,178.84,178.8,5.72071813]
[1747932661958,0.04241226,178.84,178.8,5.72071813]
[1747932662164,0.04241226,178.84,178.8,11.31181813]
[1747932662461,0.04241226,178.84,178.8,5.5911]
[1747932662665,0.04241226,178.84,178.78,121.86]
[1747932663162,5.5902,178.83,178.78,121.86]
[1747932663860,5.5902,178.83,178.79,5.5912]
[1747932664065,5.63241226,178.84,178.78,121.86]
[1747932664268,0.04241226,178.84,178.78,121.86]
[1747932664666,5.5904,178.83,178.78,127.4517]
[1747932665367,5.5907,178.82,178.78,127.4517]
[1747932665667,0.04241226,178.84,178.73,3.9642]
[1747932665866,0.03738679,178.8,178.72,121.88]
[1747932666261,5.5921,178.77,178.73,5.593]
[1747932666666,0.03738679,178.8,178.72,121.88]
[1747932666867,5.5927,178.75,178.72,121.88]
[1747932667167,0.04227844,178.78,178.72,121.88]
[1747932667368,0.04227844,178.78,178.72,127.4734]
[1747932667666,0.04227844,178.78,178.72,121.88]
[1747932668073,5.5926,178.76,178.72,121.88]
[1747932668571,5.5926,178.76,178.72,127.4734]
[1747932668768,5.5927,178.75,178.72,121.88]
[1747932668963,0.04227844,178.78,178.72,121.88]
[1747932669166,5.5928,178.75,178.72,121.88]
[1747932669564,0.04227844,178.78,178.72,121.88]
[1747932669767,5.5926,178.76,178.72,127.4736]
[1747932670566,5.5926,178.76,178.73,5.5933]
[1747932670775,0.04227844,178.78,178.72,121.88]
[1747932671272,5.5904,178.83,178.72,121.88]
[1747932671862,5.5904,178.83,178.79,5.5911]
[1747932672175,5.63054932,178.83,178.79,0.03811943]
[1747932672371,5.5905,178.82,178.79,0.03811943]
[1747932672570,0.04014932,178.83,178.79,0.03811943]
[1747932673072,5.5911,178.8,178.79,0.03811943]
[1747932680379,5.5929,178.75,178.71,121.92]
[1747932680579,125.9303,178.82,178.71,121.92]
[1747932681376,0.03658643,178.78,178.71,121.92]
[1747932681579,5.5927,178.76,178.71,121.92]
[1747932681880,5.5927,178.76,178.72,5.5934]
[1747932682075,5.5927,178.76,178.71,121.92]
[1747932682985,5.5927,178.76,178.73,5.5933]
[1747932685383,5.5927,178.75,178.73,5.5933]
[1747932685584,5.5927,178.75,178.72,5.5935]
[1747932686079,5.5927,178.75,178.73,5.5932]
[1747932686286,5.5924,178.76,178.71,121.92]
[1747932686685,5.5924,178.76,178.73,5.5931]
[1747932687689,5.5924,178.76,178.72,5.5935]
[1747932687983,5.5924,178.76,178.71,121.92]
[1747932689193,5.5924,178.76,178.73,5.5931]
[1747932689488,5.5924,178.76,178.71,121.92]
[1747932689689,5.5921,178.77,178.74,5.5928]
[1747932690194,5.5924,178.76,178.73,5.5932]
[1747932690393,0.03658643,178.78,178.71,121.92]
[1747932690891,0.03658643,178.78,178.72,5.5935]
[1747932691190,5.5926,178.76,178.72,5.5935]
[1747932691381,0.03658643,178.78,178.71,127.5138]
[1747932691685,0.03658643,178.78,178.71,121.92]
[1747932692292,5.5928,178.75,178.72,5.5936]
[1747932693688,5.5925,178.76,178.73,5.5933]
[1747932694190,0.03658643,178.78,178.71,121.92]
[1747932694693,0.03658643,178.78,178.77,5.5921]
[1747932695592,0.03658643,178.78,178.71,121.92]
[1747932696594,0.03658643,178.78,178.71,126.20486695]
[1747932697493,5.5923,178.77,178.71,126.20486695]
[1747932697681,0.03658643,178.78,178.71,126.20486695]
[1747932698694,5.5922,178.77,178.73,5.5933]
[1747932699094,0.03658643,178.78,178.73,5.5933]
[1747932699292,0.03658643,178.78,178.72,5.5935]
[1747932699498,0.03658643,178.78,178.71,126.20486695]
[1747932699894,5.5921,178.77,178.73,5.5933]
[1747932700698,0.03658643,178.78,178.71,126.20486695]
[1747932701499,0.03658643,178.78,178.72,4.28486695]
[1747932702100,5.62838643,178.78,178.75,5.5925]
[1747932702598,0.03658643,178.78,178.72,4.28486695]
[1747932704599,5.5925,178.76,178.73,9.87816695]
[1747932704800,0.03658643,178.78,178.73,4.28486695]
[1747932705101,5.593,178.74,178.73,4.28486695]
[1747932705290,0.03658643,178.78,178.73,4.28486695]
[1747932705801,5.5928,178.75,178.73,4.28486695]
[1747932706394,5.593,178.74,178.73,4.28486695]
[1747932707200,0.03658643,178.78,178.73,4.28486695]
[1747932707201,5.5928,178.75,178.73,4.28486695]
[1747932707394,5.5928,178.75,178.71,4.28486695]
[1747932708199,5.5931,178.74,178.71,4.28486695]
[1747932708402,5.63479587,178.74,178.71,4.28486695]
[1747932708596,0.04169587,178.74,178.71,4.28486695]
[1747932709400,5.63479587,178.74,178.71,4.28486695]
[1747932709602,0.04169587,178.74,178.71,4.28486695]
[1747932712997,0.04169587,178.74,178.73,5.72071813]
[1747932714302,5.63469587,178.74,178.73,5.72071813]
[1747932715003,0.04169587,178.74,178.73,5.72071813]
[1747932715406,0.04169587,178.74,178.72,4.30633944]
[1747932718000,5.63469587,178.74,178.72,4.30633944]
[1747932720206,5.5933,178.73,178.72,4.30633944]
[1747932720608,0.04169587,178.74,178.72,4.30633944]
[1747932722105,0.04169587,178.74,178.71,121.72]
[1747932723310,5.63489587,178.74,178.71,121.72]
[1747932723799,5.5934,178.73,178.71,121.72]
[1747932724003,0.04169587,178.74,178.71,121.72]
[1747932725311,5.63479587,178.74,178.71,121.72]
[1747932725514,0.04169587,178.74,178.71,121.72]
[1747932725914,5.63479587,178.74,178.71,121.72]
[1747932726217,0.04169587,178.74,178.71,121.72]
[1747932727315,0.04169587,178.74,178.71,127.46527657]
[1747932729915,0.04169587,178.74,178.71,5.74527657]
[1747932730113,5.5933,178.73,178.71,5.74527657]
[1747932730813,0.04169587,178.74,178.71,5.74527657]
[1747932732114,5.63469587,178.74,178.71,5.74527657]
[1747932732319,0.04169587,178.74,178.71,5.74527657]
[1747932732520,0.04169587,178.74,178.71,4.30794129]
[1747932734918,0.04169587,178.74,178.73,4.30794129]
[1747932736720,0.04169587,178.74,178.73,125.82794129]
[1747932737226,1.9949,178.82,178.73,125.82794129]
[1747932738325,0.04294248,178.79,178.76,0.03557952]
[1747932739228,5.5924,178.77,178.76,0.03557952]
[1747932742238,0.04294248,178.79,178.76,0.03557952]
[1747932744033,5.5921,178.77,178.76,0.03557952]
[1747932744332,0.04294248,178.79,178.76,0.03557952]
[1747932745130,5.5919,178.78,178.76,0.03557952]
[1747932745325,0.04294248,178.79,178.76,0.03557952]
[1747932746437,5.592,178.78,178.76,0.03557952]
[1747932746637,0.04294248,178.79,178.76,0.03557952]
[1747932747035,5.592,178.78,178.76,0.03557952]
[1747932747835,0.04294248,178.79,178.76,0.03557952]
[1747932747836,5.5921,178.77,178.76,0.03557952]
[1747932751137,5.5918,178.78,178.76,0.03557952]
[1747932751340,0.04294248,178.79,178.76,0.03557952]
[1747932751637,5.5921,178.77,178.76,0.03557952]
[1747932752739,5.5918,178.78,178.76,0.03557952]
[1747932753743,5.5921,178.77,178.76,0.03557952]
[1747932756340,5.593,178.74,178.73,4.30794129]
[1747932756535,1.946,178.78,178.71,5.74527657]
[1747932756736,5.5936,178.72,178.71,5.74527657]
[1747932759336,0.04231728,178.73,178.67,121.3]
[1747932760441,5.63561728,178.73,178.67,121.3]
[1747932760641,0.04231728,178.73,178.67,121.3]
[1747932761142,5.63571728,178.73,178.67,121.3]
[1747932761336,0.04231728,178.73,178.67,121.3]
[1747932762445,5.63591728,178.73,178.67,121.3]
[1747932763441,0.04231728,178.73,178.67,121.3]
[1747932764045,5.5938,178.72,178.67,121.3]
[1747932766146,5.63571728,178.73,178.67,121.3]
[1747932768146,0.04231728,178.73,178.67,121.3]
[1747932768745,5.63581728,178.73,178.67,121.3]
[1747932768942,0.04231728,178.73,178.67,121.3]
[1747932769947,5.63591728,178.73,178.67,121.3]
[1747932771548,0.04231728,178.73,178.67,121.3]
[1747932772455,1.9949,178.82,178.67,121.3]
[1747932772651,1.9949,178.82,178.68,2.0576]
[1747932772951,5.5924,178.76,178.68,2.0576]
[1747932773150,1.9949,178.82,178.68,2.0576]
[1747932773552,5.63220681,178.77,178.73,0.03623011]
[1747932773752,5.63220681,178.77,178.73,121.35623011]
[1747932774156,0.03990681,178.77,178.73,121.35623011]
[1747932774654,5.63200681,178.77,178.73,121.35623011]
[1747932774856,0.03990681,178.77,178.73,121.35623011]
[1747932775258,5.63210681,178.77,178.73,121.35623011]
[1747932775952,0.03990681,178.77,178.73,121.35623011]
[1747932777057,5.5926,178.76,178.73,121.35623011]
[1747932781467,5.5927,178.75,178.73,121.35623011]
[1747932782066,0.03990681,178.77,178.73,121.35623011]
[1747932782763,0.03990681,178.77,178.73,0.03623011]
[1747932784266,5.593,178.74,178.73,0.03623011]
[1747932784563,0.03990681,178.77,178.73,0.03623011]
[1747932784955,5.5929,178.75,178.73,0.03623011]
[1747932785560,5.5925,178.76,178.73,0.03623011]
[1747932785762,0.03990681,178.77,178.73,0.03623011]
[1747932786963,5.593,178.74,178.73,0.03623011]
[1747932791166,5.5924,178.76,178.73,0.03623011]
[1747932791371,0.03990681,178.77,178.73,0.03623011]
[1747932794378,5.593,178.74,178.73,0.03623011]
[1747932804183,9.04884454,178.77,178.67,5.74527657]
[1747932804384,1.925,178.76,178.67,5.74527657]
[1747932804987,9.00893773,178.73,178.67,5.74527657]
[1747932805188,1.99147604,178.72,178.68,0.02504451]
[1747932805582,5.5949,178.68,178.67,5.74527657]
[1747932805883,9.00893773,178.69,178.6,11.49161779]
[1747932806080,5.5971,178.61,178.6,11.49161779]
[1747932806479,121.06,178.65,178.6,11.49161779]
[1747932806682,0.03954792,178.64,178.6,11.49161779]
[1747932807691,0.03954792,178.64,178.58,121.06]
[1747932808087,9.00893773,178.59,178.44,11.49161779]
[1747932808296,9.04600465,178.53,178.44,11.49161779]
[1747932808489,121.1,178.52,178.44,11.49161779]
[1747932809487,0.03706692,178.53,178.44,11.49161779]
[1747932809892,5.63676692,178.53,178.44,11.49161779]
[1747932810093,0.03706692,178.53,178.44,11.49161779]
[1747932810993,5.6007,178.5,178.44,11.49161779]
[1747932811190,0.03810139,178.49,178.44,11.49161779]
[1747932812285,120.91810139,178.49,178.44,11.49161779]
[1747932812593,3.9308,178.48,178.44,11.49161779]
[1747932813093,5.6021,178.45,178.44,11.49161779]
[1747932813293,5.6021,178.45,178.39,120.88]
[1747932813294,3.9308,178.48,178.39,120.88]
[1747932813493,0.04202226,178.45,178.39,120.88]
[1747932813894,5.6028,178.43,178.39,120.88]
[1747932814296,0.04202226,178.45,178.36,483.48]
[1747932814595,0.03720057,178.42,178.35,120.92]
[1747932815596,5.6036,178.41,178.35,120.92]
[1747932816196,0.03720057,178.42,178.35,120.92]
[1747932820196,5.64030057,178.42,178.35,120.92]
[1747932820596,0.03720057,178.42,178.35,120.92]
[1747932825304,5.6011,178.49,178.38,9.00893773]
[1747932825505,121.0,178.53,178.39,2.0707]
[1747932825704,121.0,178.53,178.4,121.0]
[1747932826198,5.6017,178.47,178.4,121.0]
[1747932826405,0.03838578,178.48,178.44,0.03798992]
[1747932835923,5.63958578,178.48,178.44,0.03798992]
[1747932836926,5.6015,178.47,178.44,0.03798992]
[1747932837126,0.03838578,178.48,178.44,0.03798992]
[1747932837830,5.63968578,178.48,178.44,0.03798992]
[1747932838827,5.6021,178.45,178.44,0.03798992]
[1747932840022,1.9746,178.46,178.36,120.98]
[1747932841134,0.04122693,178.43,178.36,120.98]
[1747932841334,5.6031,178.42,178.36,120.98]
[1747932841825,5.6034,178.41,178.36,120.98]
[1747932842227,0.04122693,178.43,178.36,120.98]
[1747932842529,5.6034,178.41,178.36,120.98]
[1747932842731,0.04122693,178.43,178.36,120.98]
[1747932843133,5.6034,178.41,178.36,120.98]
[1747932843333,0.04122693,178.43,178.36,120.98]
[1747932843836,5.6038,178.4,178.36,120.98]
[1747932844137,0.04122693,178.43,178.36,120.98]
[1747932844437,5.6036,178.41,178.37,5.6046]
[1747932844638,0.04122693,178.43,178.36,120.98]
[1747932845637,5.6037,178.4,178.37,5.6046]
[1747932845936,5.6037,178.4,178.36,120.98]
[1747932846438,5.6037,178.4,178.36,126.5848]
[1747932847141,5.6037,178.4,178.37,5.6046]
[1747932847333,5.6034,178.41,178.36,120.98]
[1747932847634,5.6034,178.41,178.37,5.6044]
[1747932848140,5.6037,178.4,178.37,5.6044]
[1747932848336,0.04122693,178.43,178.36,120.98]
[1747932848648,9.00893773,178.38,178.2,5.63784771]
[1747932848832,0.03623773,178.32,178.2,5.63784771]
[1747932849040,0.03623773,178.32,178.24,4.0209]
[1747932849239,0.03623773,178.32,178.25,4.24101665]
[1747932849543,0.03623773,178.32,178.25,110.72101665]
[1747932850343,0.03623773,178.32,178.3,5.6066]
[1747932850740,120.83623773,178.32,178.25,4.24101665]
[1747932851647,5.6075,178.28,178.25,4.24101665]
[1747932851948,5.64293834,178.28,178.25,4.24101665]
[1747932852140,5.6078,178.27,178.25,4.24101665]
[1747932852346,0.03543834,178.28,178.25,4.24101665]
[1747932852643,0.03543834,178.28,178.19,6.087]
[1747932852947,5.6077,178.27,178.19,6.087]
[1747932853243,5.6077,178.27,178.22,5.6093]
[1747932854047,5.6077,178.27,178.23,5.6089]
[1747932855548,5.6077,178.27,178.22,5.6092]
[1747932855846,5.6082,178.26,178.22,5.6092]
[1747932859245,5.6082,178.26,178.23,5.609]
[1747932859449,5.64706558,178.26,178.23,5.609]
[1747932859747,0.03886558,178.26,178.23,5.609]
[1747932860146,0.03886558,178.26,178.19,6.087]
[1747932860349,0.03886558,178.26,178.21,9.00893773]
[1747932860743,120.86,178.34,178.19,6.087]
[1747932860942,120.86,178.34,178.21,9.00893773]
[1747932861453,120.86,178.34,178.13,15.46511665]
[1747932861748,0.03923059,178.25,178.22,0.03626714]
[1747932861946,0.0375251,178.25,178.22,0.03886558]
[1747932862353,0.0375251,178.25,178.23,5.6088]
[1747932863251,0.0375251,178.25,178.24,5.6087]
[1747932864046,122.7947,178.33,178.27,5.6075]
[1747932864255,122.7947,178.33,178.21,2.0401]
[1747932864847,122.7947,178.33,178.27,5.6075]
[1747932865150,0.04168463,178.32,178.28,0.04059883]
[1747932865556,5.64788463,178.32,178.28,0.04059883]
[1747932865750,0.04168463,178.32,178.29,5.6069]
[1747932866151,0.04168463,178.32,178.28,0.04059883]
[1747932867049,0.04168463,178.32,178.31,5.6065]
[1747932867454,0.04168463,178.32,178.28,0.04059883]
[1747932869157,0.04168463,178.32,178.31,5.6065]